[Event "Titled Tuesday Blitz June 07 Late 2022"]
[White "Leiva, Gianmarco"]
[Black "Bringas Gomez, Artai"]
[WhiteFideId "3804399"]
[BlackFideId "24534064"]
[WhiteElo "2323"]
[BlackElo "1988"]
[Result "1/2-1/2"]
[Round "10"]
[TimeControl "180+1"]
[Date "2022.06.07"]
[WhiteClock "0:00:22"]
[BlackClock "0:00:20"]

1. e4 {[%clk 0:03:00]}  c6 {[%clk 0:02:59]} 2. d4 {[%clk 0:03:00]}  d5 {[%clk 0:02:59]} 3. e5 {[%clk 0:03:01]}  c5 {[%clk 0:02:58]} 4. dxc5 {[%clk 0:02:59]}  e6 {[%clk 0:02:58]} 5. Bd3 {[%clk 0:02:55]}  Nd7 {[%clk 0:02:57]} 6. b4 {[%clk 0:02:46]}  Nxe5 {[%clk 0:02:45]} 7. Bb5+ {[%clk 0:02:44]}  Bd7 {[%clk 0:02:45]} 8. Bxd7+ {[%clk 0:02:44]}  Qxd7 {[%clk 0:02:45]} 9. Nd2 {[%clk 0:02:42]}  a5 {[%clk 0:02:41]} 10. Bb2 {[%clk 0:02:43]}  Nc6 {[%clk 0:02:31]} 11. b5 {[%clk 0:02:43]}  Na7 {[%clk 0:02:31]} 12. a4 {[%clk 0:02:44]}  Nf6 {[%clk 0:02:29]} 13. Bxf6 {[%clk 0:02:37]}  gxf6 {[%clk 0:02:30]} 14. Nb3 {[%clk 0:02:38]}  Rg8 {[%clk 0:02:28]} 15. Ne2 {[%clk 0:02:35]}  Rc8 {[%clk 0:02:28]} 16. c4 {[%clk 0:02:23]}  dxc4 {[%clk 0:02:21]} 17. Qxd7+ {[%clk 0:02:22]}  Kxd7 {[%clk 0:02:22]} 18. Nxa5 {[%clk 0:02:23]}  Bxc5 {[%clk 0:02:18]} 19. O-O {[%clk 0:02:23]}  b6 {[%clk 0:02:15]} 20. Nxc4 {[%clk 0:02:20]}  Ke7 {[%clk 0:02:07]} 21. Rac1 {[%clk 0:02:09]}  Rg4 {[%clk 0:02:02]} 22. h3 {[%clk 0:02:06]}  Re4 {[%clk 0:02:01]} 23. Ng3 {[%clk 0:02:05]}  Rxc4 {[%clk 0:01:59]} 24. Rxc4 {[%clk 0:02:04]}  Bxf2+ {[%clk 0:02:00]} 25. Rxf2 {[%clk 0:02:02]}  Rxc4 {[%clk 0:02:01]} 26. Ra2 {[%clk 0:02:02]}  Kd6 {[%clk 0:01:50]} 27. Kf2 {[%clk 0:01:59]}  Kc5 {[%clk 0:01:49]} 28. Nh5 {[%clk 0:01:54]}  Kb4 {[%clk 0:01:46]} 29. g4 {[%clk 0:01:51]}  Kb3 {[%clk 0:01:46]} 30. Ra1 {[%clk 0:01:50]}  Kb2 {[%clk 0:01:46]} 31. a5 {[%clk 0:01:39]}  Kxa1 {[%clk 0:01:46]} 32. axb6 {[%clk 0:01:39]}  Nc6 {[%clk 0:01:46]} 33. bxc6 {[%clk 0:01:39]}  Rxc6 {[%clk 0:01:47]} 34. Nxf6 {[%clk 0:01:38]}  Rxb6 {[%clk 0:01:48]} 35. Nxh7 {[%clk 0:01:38]}  Rb3 {[%clk 0:01:40]} 36. h4 {[%clk 0:01:35]}  Rh3 {[%clk 0:01:33]} 37. h5 {[%clk 0:01:33]}  f5 {[%clk 0:01:27]} 38. Ng5 {[%clk 0:00:43]}  Rh4 {[%clk 0:01:26]} 39. gxf5 {[%clk 0:00:43]}  exf5 {[%clk 0:01:17]} 40. Kf3 {[%clk 0:00:43]}  Kb2 {[%clk 0:01:13]} 41. h6 {[%clk 0:00:43]}  Rxh6 {[%clk 0:01:09]} 42. Kf4 {[%clk 0:00:43]}  Rf6 {[%clk 0:01:08]} 43. Ke5 {[%clk 0:00:36]}  Rf8 {[%clk 0:01:06]} 44. Ne6 {[%clk 0:00:35]}  Rf7 {[%clk 0:00:59]} 45. Kf4 {[%clk 0:00:25]}  Kc3 {[%clk 0:00:56]} 46. Ng5 {[%clk 0:00:25]}  Rf8 {[%clk 0:00:52]} 47. Nh7 {[%clk 0:00:25]}  Rh8 {[%clk 0:00:52]} 48. Ng5 {[%clk 0:00:26]}  Ra8 {[%clk 0:00:47]} 49. Kxf5 {[%clk 0:00:25]}  Ra5+ {[%clk 0:00:48]} 50. Kf4 {[%clk 0:00:26]}  Kd3 {[%clk 0:00:47]} 51. Nf3 {[%clk 0:00:24]}  Ra4+ {[%clk 0:00:44]} 52. Kf5 {[%clk 0:00:24]}  Ke3 {[%clk 0:00:42]} 53. Ne5 {[%clk 0:00:22]}  Ra5 {[%clk 0:00:41]} 54. Ke6 {[%clk 0:00:22]}  Ke4 {[%clk 0:00:40]} 55. Nc4 {[%clk 0:00:23]}  Ra6+ {[%clk 0:00:38]} 56. Nd6+ {[%clk 0:00:23]}  Kd4 {[%clk 0:00:35]} 57. Kd7 {[%clk 0:00:23]}  Kd5 {[%clk 0:00:33]} 58. Nb5 {[%clk 0:00:24]}  Rb6 {[%clk 0:00:27]} 59. Nc7+ {[%clk 0:00:24]}  Ke5 {[%clk 0:00:26]} 60. Ne8 {[%clk 0:00:22]}  Rg6 {[%clk 0:00:22]} 61. Nc7 {[%clk 0:00:22]}  Kd4 {[%clk 0:00:21]} 62. Ne6+ {[%clk 0:00:21]}  Ke5 {[%clk 0:00:20]} 63. Nc7 {[%clk 0:00:21]}  Rg7+ {[%clk 0:00:20]} 64. Kc6 {[%clk 0:00:22]}  Rg6+ {[%clk 0:00:20]} 65. Kd7 {[%clk 0:00:22]} 1/2-1/2


[Site "https://www.chess.com"]

[Event "Titled Tuesday Blitz June 07 Late 2022"]
[White "Maksimovic, Bojan"]
[Black "Hosseinzadeh, Nima"]
[WhiteFideId "14408120"]
[BlackFideId "12505323"]
[WhiteElo "2453"]
[BlackElo "2066"]
[Result "1-0"]
[Round "10"]
[TimeControl "180+1"]
[Date "2022.06.07"]
[WhiteClock "0:01:07"]
[BlackClock "0:00:02"]

1. Nf3 {[%clk 0:03:00]}  Nf6 {[%clk 0:02:59]} 2. g3 {[%clk 0:03:01]}  b5 {[%clk 0:02:59]} 3. Bg2 {[%clk 0:03:02]}  Bb7 {[%clk 0:03:00]} 4. O-O {[%clk 0:03:03]}  e6 {[%clk 0:03:00]} 5. d3 {[%clk 0:03:04]}  c5 {[%clk 0:03:00]} 6. Nbd2 {[%clk 0:03:04]}  Be7 {[%clk 0:02:59]} 7. e4 {[%clk 0:03:05]}  d6 {[%clk 0:02:59]} 8. Re1 {[%clk 0:03:05]}  Nc6 {[%clk 0:02:57]} 9. h4 {[%clk 0:03:06]}  O-O {[%clk 0:02:48]} 10. e5 {[%clk 0:03:05]}  Nxe5 {[%clk 0:02:45]} 11. Nxe5 {[%clk 0:03:06]}  Bxg2 {[%clk 0:02:45]} 12. Nxf7 {[%clk 0:03:05]}  Rxf7 {[%clk 0:02:40]} 13. Kxg2 {[%clk 0:03:05]}  e5 {[%clk 0:02:40]} 14. Ne4 {[%clk 0:03:06]}  Qd7 {[%clk 0:02:33]} 15. Ng5 {[%clk 0:03:01]}  Rff8 {[%clk 0:02:28]} 16. a4 {[%clk 0:03:02]}  b4 {[%clk 0:02:26]} 17. b3 {[%clk 0:03:00]}  h6 {[%clk 0:02:25]} 18. Ne4 {[%clk 0:03:00]}  Rf7 {[%clk 0:02:17]} 19. Rf1 {[%clk 0:02:54]}  Raf8 {[%clk 0:02:13]} 20. Qe2 {[%clk 0:02:53]}  Nd5 {[%clk 0:02:12]} 21. Bd2 {[%clk 0:02:49]}  Qe6 {[%clk 0:01:55]} 22. Rh1 {[%clk 0:02:31]}  Qg6 {[%clk 0:01:36]} 23. h5 {[%clk 0:02:30]}  Qf5 {[%clk 0:01:36]} 24. Raf1 {[%clk 0:02:26]}  Nc7 {[%clk 0:01:35]} 25. g4 {[%clk 0:02:19]}  Qd7 {[%clk 0:01:34]} 26. f3 {[%clk 0:02:19]}  Ne6 {[%clk 0:01:31]} 27. Be3 {[%clk 0:02:16]}  d5 {[%clk 0:01:30]} 28. Ng3 {[%clk 0:02:16]}  Bg5 {[%clk 0:01:28]} 29. Bxg5 {[%clk 0:02:04]}  hxg5 {[%clk 0:01:23]} 30. Qxe5 {[%clk 0:01:57]}  Re8 {[%clk 0:01:05]} 31. Kh2 {[%clk 0:01:23]}  Qd8 {[%clk 0:01:04]} 32. Re1 {[%clk 0:01:12]}  Rxf3 {[%clk 0:01:03]} 33. Nf5 {[%clk 0:01:12]}  Rf2+ {[%clk 0:00:29]} 34. Kg3 {[%clk 0:01:12]}  Rg2+ {[%clk 0:00:18]} 35. Kxg2 {[%clk 0:01:12]}  Nf4+ {[%clk 0:00:18]} 36. Kg3 {[%clk 0:01:13]}  Rxe5 {[%clk 0:00:18]} 37. Rxe5 {[%clk 0:01:14]}  Qf6 {[%clk 0:00:18]} 38. Rhe1 {[%clk 0:01:14]}  Kh7 {[%clk 0:00:17]} 39. Re7 {[%clk 0:01:14]}  Nxh5+ {[%clk 0:00:17]} 40. Kh2 {[%clk 0:01:11]}  Qc3 {[%clk 0:00:17]} 41. R1e2 {[%clk 0:01:09]}  Qf6 {[%clk 0:00:12]} 42. Rf2 {[%clk 0:01:05]}  Nf4 {[%clk 0:00:03]} 43. Rxg7+ {[%clk 0:01:05]}  Kh8 {[%clk 0:00:04]} 44. Kg3 {[%clk 0:01:06]}  Nh5+ {[%clk 0:00:02]} 45. gxh5 {[%clk 0:01:06]}  Qe5+ {[%clk 0:00:02]} 46. Kg4 {[%clk 0:01:07]} 1-0


[Site "https://www.chess.com"]

[Event "Titled Tuesday Blitz June 07 Late 2022"]
[White "Maltsevskaya, Aleksandra"]
[Black "Bernal Moro, Luis Javier"]
[WhiteFideId "24174041"]
[BlackFideId "2200236"]
[WhiteElo "2243"]
[BlackElo "2373"]
[Result "0-1"]
[Round "10"]
[TimeControl "180+1"]
[Date "2022.06.07"]
[WhiteClock "0:00:03"]
[BlackClock "0:00:12"]

1. e4 {[%clk 0:03:00]}  c5 {[%clk 0:02:57]} 2. Nf3 {[%clk 0:03:00]}  e6 {[%clk 0:02:55]} 3. d4 {[%clk 0:02:59]}  cxd4 {[%clk 0:02:56]} 4. Nxd4 {[%clk 0:03:00]}  Nc6 {[%clk 0:02:56]} 5. Nc3 {[%clk 0:03:00]}  a6 {[%clk 0:02:56]} 6. f4 {[%clk 0:02:58]}  Qc7 {[%clk 0:02:51]} 7. Nxc6 {[%clk 0:02:59]}  Qxc6 {[%clk 0:02:49]} 8. Bd3 {[%clk 0:02:59]}  b5 {[%clk 0:02:49]} 9. Qe2 {[%clk 0:03:00]}  Bb7 {[%clk 0:02:48]} 10. Bd2 {[%clk 0:03:00]}  Bc5 {[%clk 0:02:38]} 11. O-O-O {[%clk 0:03:00]}  Ne7 {[%clk 0:02:37]} 12. Qh5 {[%clk 0:03:00]}  g6 {[%clk 0:02:32]} 13. Qg5 {[%clk 0:02:59]}  O-O-O {[%clk 0:02:26]} 14. Kb1 {[%clk 0:02:56]}  f5 {[%clk 0:02:22]} 15. Rhe1 {[%clk 0:02:54]}  h6 {[%clk 0:02:17]} 16. Qg3 {[%clk 0:02:51]}  Kb8 {[%clk 0:02:02]} 17. a3 {[%clk 0:02:45]}  Rc8 {[%clk 0:01:59]} 18. Na2 {[%clk 0:02:10]}  Qc7 {[%clk 0:01:25]} 19. Bb4 {[%clk 0:02:03]}  Bxb4 {[%clk 0:01:07]} 20. Nxb4 {[%clk 0:02:04]}  a5 {[%clk 0:01:07]} 21. Na2 {[%clk 0:02:03]}  fxe4 {[%clk 0:01:07]} 22. Bxb5 {[%clk 0:01:58]}  Qxc2+ {[%clk 0:01:07]} 23. Ka1 {[%clk 0:01:59]}  Bd5 {[%clk 0:00:57]} 24. Bxd7 {[%clk 0:01:13]}  Rcd8 {[%clk 0:00:48]} 25. f5+ {[%clk 0:01:12]}  Qc7 {[%clk 0:00:41]} 26. fxe6 {[%clk 0:01:06]}  Qxg3 {[%clk 0:00:40]} 27. hxg3 {[%clk 0:01:07]}  Rhf8 {[%clk 0:00:37]} 28. Nc3 {[%clk 0:01:06]}  Bb3 {[%clk 0:00:36]} 29. Rc1 {[%clk 0:00:57]}  Rf2 {[%clk 0:00:31]} 30. Nxe4 {[%clk 0:00:54]}  Rxg2 {[%clk 0:00:31]} 31. Nc5 {[%clk 0:00:54]}  Bd5 {[%clk 0:00:31]} 32. Red1 {[%clk 0:00:51]}  Rxg3 {[%clk 0:00:29]} 33. Rd4 {[%clk 0:00:22]}  Rh3 {[%clk 0:00:23]} 34. Ra4 {[%clk 0:00:22]}  Rh1 {[%clk 0:00:23]} 35. Rxh1 {[%clk 0:00:21]}  Bxh1 {[%clk 0:00:23]} 36. Rxa5 {[%clk 0:00:22]}  g5 {[%clk 0:00:22]} 37. Rb5+ {[%clk 0:00:17]}  Kc7 {[%clk 0:00:22]} 38. Na6+ {[%clk 0:00:17]}  Kd6 {[%clk 0:00:21]} 39. Rb6+ {[%clk 0:00:17]}  Ke5 {[%clk 0:00:22]} 40. Nb4 {[%clk 0:00:18]}  Be4 {[%clk 0:00:20]} 41. a4 {[%clk 0:00:18]}  Rf8 {[%clk 0:00:20]} 42. Ka2 {[%clk 0:00:17]}  g4 {[%clk 0:00:20]} 43. Rb5+ {[%clk 0:00:16]}  Kd4 {[%clk 0:00:17]} 44. a5 {[%clk 0:00:16]}  g3 {[%clk 0:00:17]} 45. Nc2+ {[%clk 0:00:03]}  Bxc2 {[%clk 0:00:17]} 46. Rb4+ {[%clk 0:00:03]}  Ke3 {[%clk 0:00:16]} 47. Rg4 {[%clk 0:00:04]}  Kf2 {[%clk 0:00:16]} 48. Rg7 {[%clk 0:00:04]}  g2 {[%clk 0:00:15]} 49. Rxe7 {[%clk 0:00:03]}  g1=Q {[%clk 0:00:15]} 50. Rf7+ {[%clk 0:00:04]}  Rxf7 {[%clk 0:00:15]} 51. exf7 {[%clk 0:00:05]}  Qg7 {[%clk 0:00:14]} 52. Be6 {[%clk 0:00:05]}  Bg6 {[%clk 0:00:14]} 53. f8=Q+ {[%clk 0:00:02]}  Qxf8 {[%clk 0:00:13]} 54. a6 {[%clk 0:00:01]}  Qa8 {[%clk 0:00:12]} 55. Bc4 {[%clk 0:00:02]}  Be4 {[%clk 0:00:11]} 56. b4 {[%clk 0:00:02]}  Qa7 {[%clk 0:00:12]} 57. b5 {[%clk 0:00:03]}  Ke3 {[%clk 0:00:12]} 58. Kb3 {[%clk 0:00:03]}  Kd4 {[%clk 0:00:12]} 59. Be2 {[%clk 0:00:02]}  Qb6 {[%clk 0:00:12]} 60. Kb4 {[%clk 0:00:02]}  Bd5 {[%clk 0:00:11]} 61. Ka4 {[%clk 0:00:02]}  Kc5 {[%clk 0:00:11]} 62. Bd3 {[%clk 0:00:02]}  Bc4 {[%clk 0:00:12]} 63. Bxc4 {[%clk 0:00:02]}  Kxc4 {[%clk 0:00:12]} 64. a7 {[%clk 0:00:03]}  Qxa7# {[%clk 0:00:12]} 0-1


[Site "https://www.chess.com"]

[Event "Titled Tuesday Blitz June 07 Late 2022"]
[White "Moussard, Jules"]
[Black "Terry, Renato"]
[WhiteFideId "642908"]
[BlackFideId "3803457"]
[WhiteElo "2589"]
[BlackElo "2577"]
[Result "1/2-1/2"]
[Round "10"]
[TimeControl "180+1"]
[Date "2022.06.07"]
[WhiteClock "0:00:07"]
[BlackClock "0:00:03"]

1. e4 {[%clk 0:03:00]}  g6 {[%clk 0:03:00]} 2. d4 {[%clk 0:03:01]}  Bg7 {[%clk 0:03:00]} 3. Nc3 {[%clk 0:03:02]}  c6 {[%clk 0:03:01]} 4. Nf3 {[%clk 0:03:01]}  d5 {[%clk 0:03:00]} 5. Bd3 {[%clk 0:02:57]}  Nh6 {[%clk 0:03:01]} 6. O-O {[%clk 0:02:57]}  f6 {[%clk 0:02:56]} 7. Re1 {[%clk 0:02:56]}  Nf7 {[%clk 0:02:52]} 8. h3 {[%clk 0:02:56]}  O-O {[%clk 0:02:52]} 9. Bf4 {[%clk 0:02:54]}  e5 {[%clk 0:02:50]} 10. dxe5 {[%clk 0:02:42]}  fxe5 {[%clk 0:02:50]} 11. Bg3 {[%clk 0:02:42]}  d4 {[%clk 0:02:48]} 12. Nb1 {[%clk 0:02:42]}  Be6 {[%clk 0:02:45]} 13. Nbd2 {[%clk 0:02:41]}  c5 {[%clk 0:02:39]} 14. Bc4 {[%clk 0:02:34]}  Qd7 {[%clk 0:02:38]} 15. a4 {[%clk 0:02:30]}  Nc6 {[%clk 0:02:38]} 16. Qe2 {[%clk 0:02:28]}  Rad8 {[%clk 0:02:36]} 17. Bxe6 {[%clk 0:02:25]}  Qxe6 {[%clk 0:02:36]} 18. Qc4 {[%clk 0:02:24]}  Qxc4 {[%clk 0:02:21]} 19. Nxc4 {[%clk 0:02:25]}  g5 {[%clk 0:02:13]} 20. c3 {[%clk 0:02:20]}  Rfe8 {[%clk 0:02:03]} 21. a5 {[%clk 0:02:20]}  h6 {[%clk 0:02:01]} 22. Ra3 {[%clk 0:02:20]}  Nd6 {[%clk 0:01:53]} 23. Nfd2 {[%clk 0:02:20]}  Nb5 {[%clk 0:01:36]} 24. Rb3 {[%clk 0:02:17]}  a6 {[%clk 0:01:36]} 25. Ra1 {[%clk 0:02:14]}  Re7 {[%clk 0:01:08]} 26. Kf1 {[%clk 0:01:47]}  Kh7 {[%clk 0:01:01]} 27. Ke1 {[%clk 0:01:47]}  Kg6 {[%clk 0:01:01]} 28. f3 {[%clk 0:01:45]}  h5 {[%clk 0:00:59]} 29. Nb6 {[%clk 0:01:35]}  Rf7 {[%clk 0:00:41]} 30. Nd5 {[%clk 0:01:31]}  Ne7 {[%clk 0:00:35]} 31. c4 {[%clk 0:01:27]}  Nd6 {[%clk 0:00:35]} 32. Rb6 {[%clk 0:01:11]}  Nc8 {[%clk 0:00:34]} 33. Rb3 {[%clk 0:01:07]}  Ne7 {[%clk 0:00:34]} 34. Ra4 {[%clk 0:01:05]}  Nc6 {[%clk 0:00:32]} 35. Rb6 {[%clk 0:01:00]}  Nc8 {[%clk 0:00:32]} 36. Rb3 {[%clk 0:00:59]}  Bh6 {[%clk 0:00:22]} 37. Rd3 {[%clk 0:00:51]}  Re8 {[%clk 0:00:14]} 38. Nb3 {[%clk 0:00:51]}  Bf8 {[%clk 0:00:13]} 39. Nc1 {[%clk 0:00:50]}  Bd6 {[%clk 0:00:13]} 40. Rb3 {[%clk 0:00:51]}  Ref8 {[%clk 0:00:12]} 41. Nd3 {[%clk 0:00:46]}  g4 {[%clk 0:00:12]} 42. hxg4 {[%clk 0:00:46]}  hxg4 {[%clk 0:00:13]} 43. fxg4 {[%clk 0:00:44]}  Kg5 {[%clk 0:00:09]} 44. Nf2 {[%clk 0:00:35]}  Nb4 {[%clk 0:00:10]} 45. Nxb4 {[%clk 0:00:34]}  cxb4 {[%clk 0:00:11]} 46. Ke2 {[%clk 0:00:27]}  Na7 {[%clk 0:00:09]} 47. Ra1 {[%clk 0:00:28]}  Rh7 {[%clk 0:00:06]} 48. Rf3 {[%clk 0:00:25]}  Rxf3 {[%clk 0:00:02]} 49. Kxf3 {[%clk 0:00:26]}  Nc6 {[%clk 0:00:01]} 50. b3 {[%clk 0:00:16]}  Rf7+ {[%clk 0:00:02]} 51. Ke2 {[%clk 0:00:16]}  Bc7 {[%clk 0:00:03]} 52. Rh1 {[%clk 0:00:16]}  Nxa5 {[%clk 0:00:02]} 53. Rh5+ {[%clk 0:00:16]}  Kg6 {[%clk 0:00:03]} 54. Nd3 {[%clk 0:00:13]}  Nxb3 {[%clk 0:00:03]} 55. Bxe5 {[%clk 0:00:14]}  a5 {[%clk 0:00:03]} 56. Bxc7 {[%clk 0:00:08]}  Rxc7 {[%clk 0:00:04]} 57. Rb5 {[%clk 0:00:07]}  Kg7 {[%clk 0:00:02]} 58. Nf4 {[%clk 0:00:05]}  Rxc4 {[%clk 0:00:02]} 59. Rxb7+ {[%clk 0:00:06]}  Kf6 {[%clk 0:00:02]} 60. Nd5+ {[%clk 0:00:06]}  Ke5 {[%clk 0:00:03]} 61. Re7+ {[%clk 0:00:06]}  Kd6 {[%clk 0:00:03]} 62. Kd3 {[%clk 0:00:06]}  Rc1 {[%clk 0:00:03]} 63. Ra7 {[%clk 0:00:06]}  Ke5 {[%clk 0:00:02]} 64. Re7+ {[%clk 0:00:06]}  Kd6 {[%clk 0:00:02]} 65. Ra7 {[%clk 0:00:07]}  Ra1 {[%clk 0:00:01]} 66. Nb6 {[%clk 0:00:05]}  Nc5+ {[%clk 0:00:01]} 67. Kxd4 {[%clk 0:00:04]}  Kc6 {[%clk 0:00:02]} 68. Nd5 {[%clk 0:00:03]}  Ne6+ {[%clk 0:00:01]} 69. Ke5 {[%clk 0:00:04]}  Nc5 {[%clk 0:00:01]} 70. g5 {[%clk 0:00:04]}  Kb5 {[%clk 0:00:02]} 71. g6 {[%clk 0:00:04]}  Rg1 {[%clk 0:00:02]} 72. Nf4 {[%clk 0:00:05]}  Rd1 {[%clk 0:00:01]} 73. Ra8 {[%clk 0:00:03]}  Rd7 {[%clk 0:00:01]} 74. Kf6 {[%clk 0:00:04]}  Rd6+ {[%clk 0:00:01]} 75. Kf5 {[%clk 0:00:04]}  Rd7 {[%clk 0:00:02]} 76. e5 {[%clk 0:00:04]}  Kc4 {[%clk 0:00:02]} 77. e6 {[%clk 0:00:05]}  Rb7 {[%clk 0:00:02]} 78. Kf6 {[%clk 0:00:05]}  Ne4+ {[%clk 0:00:02]} 79. Ke5 {[%clk 0:00:06]}  b3 {[%clk 0:00:03]} 80. Rc8+ {[%clk 0:00:04]}  Nc5 {[%clk 0:00:03]} 81. g7 {[%clk 0:00:01]}  Rxg7 {[%clk 0:00:03]} 82. Rb8 {[%clk 0:00:02]}  a4 {[%clk 0:00:02]} 83. g4 {[%clk 0:00:02]}  Rg5+ {[%clk 0:00:03]} 84. Kf6 {[%clk 0:00:02]}  Rxg4 {[%clk 0:00:03]} 85. Kf5 {[%clk 0:00:03]}  Rxf4+ {[%clk 0:00:03]} 86. Kxf4 {[%clk 0:00:04]}  Nxe6+ {[%clk 0:00:04]} 87. Ke3 {[%clk 0:00:05]}  Nc5 {[%clk 0:00:03]} 88. Kd2 {[%clk 0:00:05]}  a3 {[%clk 0:00:04]} 89. Kc1 {[%clk 0:00:06]}  Nd3+ {[%clk 0:00:03]} 90. Kb1 {[%clk 0:00:07]}  Nb4 {[%clk 0:00:02]} 91. Rc8+ {[%clk 0:00:07]}  Kd4 {[%clk 0:00:02]} 92. Rd8+ {[%clk 0:00:08]}  Kc5 {[%clk 0:00:02]} 93. Rc8+ {[%clk 0:00:08]}  Kb5 {[%clk 0:00:03]} 94. Rb8+ {[%clk 0:00:08]}  Kc4 {[%clk 0:00:02]} 95. Rc8+ {[%clk 0:00:07]}  Kd4 {[%clk 0:00:03]} 96. Rd8+ {[%clk 0:00:06]}  Nd5 {[%clk 0:00:03]} 97. Rb8 {[%clk 0:00:06]}  Kc4 {[%clk 0:00:02]} 98. Rc8+ {[%clk 0:00:06]}  Kd3 {[%clk 0:00:02]} 99. Rb8 {[%clk 0:00:06]}  Nc3+ {[%clk 0:00:02]} 100. Ka1 {[%clk 0:00:06]}  Kc2 {[%clk 0:00:02]} 101. Rxb3 {[%clk 0:00:07]}  Kxb3 {[%clk 0:00:03]} 1/2-1/2


[Site "https://www.chess.com"]

[Event "Titled Tuesday Blitz June 07 Late 2022"]
[White "Pesotskiy, Mikhail"]
[Black "Tanenbaum, Zachary"]
[WhiteFideId "34164453"]
[BlackFideId "2060850"]
[WhiteElo "2010"]
[BlackElo "2175"]
[Result "1-0"]
[Round "10"]
[TimeControl "180+1"]
[Date "2022.06.07"]
[WhiteClock "0:00:14"]
[BlackClock "0:00:05"]

1. d4 {[%clk 0:03:00]}  d5 {[%clk 0:02:59]} 2. c4 {[%clk 0:02:59]}  dxc4 {[%clk 0:03:00]} 3. e3 {[%clk 0:02:57]}  e5 {[%clk 0:03:00]} 4. Bxc4 {[%clk 0:02:56]}  exd4 {[%clk 0:03:01]} 5. exd4 {[%clk 0:02:56]}  Bd6 {[%clk 0:03:01]} 6. Nf3 {[%clk 0:02:56]}  Nf6 {[%clk 0:03:01]} 7. O-O {[%clk 0:02:57]}  O-O {[%clk 0:03:02]} 8. Bg5 {[%clk 0:02:55]}  Nc6 {[%clk 0:02:59]} 9. Nc3 {[%clk 0:02:54]}  h6 {[%clk 0:02:58]} 10. Bh4 {[%clk 0:02:54]}  Bg4 {[%clk 0:02:48]} 11. h3 {[%clk 0:02:23]}  Bh5 {[%clk 0:02:29]} 12. Qd3 {[%clk 0:02:00]}  Na5 {[%clk 0:02:12]} 13. Nd5 {[%clk 0:01:46]}  g5 {[%clk 0:02:01]} 14. Nxg5 {[%clk 0:01:18]}  hxg5 {[%clk 0:01:26]} 15. Bxg5 {[%clk 0:01:19]}  Be7 {[%clk 0:01:25]} 16. Nxe7+ {[%clk 0:00:32]}  Qxe7 {[%clk 0:01:26]} 17. Qf5 {[%clk 0:00:33]}  Nxc4 {[%clk 0:00:31]} 18. Bxf6 {[%clk 0:00:33]}  Bg6 {[%clk 0:00:31]} 19. Qg5 {[%clk 0:00:33]}  Qe6 {[%clk 0:00:13]} 20. Qh4 {[%clk 0:00:33]}  Bh5 {[%clk 0:00:10]} 21. d5 {[%clk 0:00:05]}  Qf5 {[%clk 0:00:08]} 22. g4 {[%clk 0:00:05]}  Nd2 {[%clk 0:00:07]} 23. gxf5 {[%clk 0:00:01]}  Nf3+ {[%clk 0:00:07]} 24. Kg2 {[%clk 0:00:02]}  Nxh4+ {[%clk 0:00:08]} 25. Bxh4 {[%clk 0:00:03]}  f6 {[%clk 0:00:08]} 26. Rfe1 {[%clk 0:00:03]}  Kf7 {[%clk 0:00:08]} 27. Re6 {[%clk 0:00:03]}  Kg7 {[%clk 0:00:07]} 28. Kh2 {[%clk 0:00:04]}  Bf7 {[%clk 0:00:02]} 29. Rg1+ {[%clk 0:00:04]}  Kh7 {[%clk 0:00:02]} 30. Rxf6 {[%clk 0:00:05]}  Bxd5 {[%clk 0:00:03]} 31. Rgg6 {[%clk 0:00:03]}  Rxf6 {[%clk 0:00:03]} 32. Bxf6 {[%clk 0:00:03]}  Re8 {[%clk 0:00:03]} 33. Rg7+ {[%clk 0:00:03]}  Kh6 {[%clk 0:00:04]} 34. Rxc7 {[%clk 0:00:04]}  Rg8 {[%clk 0:00:04]} 35. f3 {[%clk 0:00:01]}  Bxf3 {[%clk 0:00:04]} 36. Rc2 {[%clk 0:00:02]}  Be4 {[%clk 0:00:04]} 37. Rf2 {[%clk 0:00:02]}  Rf8 {[%clk 0:00:04]} 38. Bd4 {[%clk 0:00:03]}  Rxf5 {[%clk 0:00:04]} 39. Rxf5 {[%clk 0:00:03]}  Bxf5 {[%clk 0:00:05]} 40. Bxa7 {[%clk 0:00:03]}  Be6 {[%clk 0:00:06]} 41. a3 {[%clk 0:00:03]}  Bb3 {[%clk 0:00:06]} 42. Kg3 {[%clk 0:00:04]}  Be6 {[%clk 0:00:06]} 43. h4 {[%clk 0:00:03]}  Kh5 {[%clk 0:00:06]} 44. Bf2 {[%clk 0:00:03]}  Bd5 {[%clk 0:00:06]} 45. Kf4 {[%clk 0:00:04]}  Kg6 {[%clk 0:00:06]} 46. Ke5 {[%clk 0:00:05]}  Bf3 {[%clk 0:00:06]} 47. Kd6 {[%clk 0:00:05]}  Kf5 {[%clk 0:00:06]} 48. b4 {[%clk 0:00:04]}  Ke4 {[%clk 0:00:05]} 49. a4 {[%clk 0:00:04]}  Kd3 {[%clk 0:00:06]} 50. a5 {[%clk 0:00:03]}  Kc4 {[%clk 0:00:06]} 51. Bc5 {[%clk 0:00:03]}  Kb5 {[%clk 0:00:06]} 52. Ke5 {[%clk 0:00:03]}  Bd1 {[%clk 0:00:06]} 53. Kf5 {[%clk 0:00:04]}  Kc6 {[%clk 0:00:05]} 54. Kg6 {[%clk 0:00:03]}  Kd5 {[%clk 0:00:05]} 55. h5 {[%clk 0:00:04]}  Ke6 {[%clk 0:00:05]} 56. h6 {[%clk 0:00:04]}  Bc2+ {[%clk 0:00:05]} 57. Kg7 {[%clk 0:00:05]}  Kd5 {[%clk 0:00:05]} 58. h7 {[%clk 0:00:05]}  Bxh7 {[%clk 0:00:05]} 59. Kxh7 {[%clk 0:00:06]}  Kc6 {[%clk 0:00:06]} 60. Kg6 {[%clk 0:00:06]}  Kc7 {[%clk 0:00:05]} 61. Kf6 {[%clk 0:00:07]}  Kc6 {[%clk 0:00:06]} 62. Ke5 {[%clk 0:00:07]}  Kc7 {[%clk 0:00:06]} 63. Kd5 {[%clk 0:00:08]}  Kb8 {[%clk 0:00:06]} 64. Bb6 {[%clk 0:00:09]}  Ka8 {[%clk 0:00:07]} 65. Kc5 {[%clk 0:00:09]}  Kb8 {[%clk 0:00:07]} 66. Kd6 {[%clk 0:00:10]}  Ka8 {[%clk 0:00:07]} 67. Kd7 {[%clk 0:00:11]}  Kb8 {[%clk 0:00:07]} 68. Bc5 {[%clk 0:00:12]}  Ka8 {[%clk 0:00:08]} 69. Kc8 {[%clk 0:00:12]}  b6 {[%clk 0:00:07]} 70. a6 {[%clk 0:00:10]}  b5 {[%clk 0:00:05]} 71. Kd8 {[%clk 0:00:09]}  Kb8 {[%clk 0:00:05]} 72. Kd7 {[%clk 0:00:09]}  Ka8 {[%clk 0:00:04]} 73. Kc6 {[%clk 0:00:10]}  Kb8 {[%clk 0:00:05]} 74. Kxb5 {[%clk 0:00:11]}  Ka8 {[%clk 0:00:06]} 75. Ka5 {[%clk 0:00:11]}  Kb8 {[%clk 0:00:06]} 76. b5 {[%clk 0:00:12]}  Ka8 {[%clk 0:00:06]} 77. b6 {[%clk 0:00:13]}  Kb8 {[%clk 0:00:07]} 78. Kb5 {[%clk 0:00:13]}  Kc8 {[%clk 0:00:06]} 79. b7+ {[%clk 0:00:13]}  Kc7 {[%clk 0:00:06]} 80. Ba7 {[%clk 0:00:13]}  Kd7 {[%clk 0:00:05]} 81. b8=Q {[%clk 0:00:14]} 1-0


[Site "https://www.chess.com"]